bitfinex-derivatives/quotes_SOLF0:USTF0_20241120
["timestamp","ask_amount","ask_price","bid_price","bid_amount"]
[1732136001300,2.1212,235.49,235.44,2.1215]
[1732136001994,2.1212,235.49,235.42,10.42319078]
[1732136001995,2.17213187,235.54,235.42,10.42319078]
[1732136002195,2.1213,235.48,235.43,2.1217]
[1732136002395,2.1213,235.48,235.42,10.42319078]
[1732136002695,6.64536557,235.52,235.44,6.64536557]
[1732136002891,6.64536557,235.54,235.46,6.64536557]
[1732136003096,6.64536557,235.54,235.46,9.12536557]
[1732136003495,2.121,235.51,235.46,11.24676557]
[1732136004000,6.64536557,235.54,235.46,9.12536557]
[1732136004191,6.64536557,235.54,235.46,2.48]
[1732136004495,2.1209,235.52,235.46,2.48]
[1732136004694,6.64536557,235.54,235.46,2.48]
[1732136005301,2.1209,235.52,235.46,2.48]
[1732136005499,6.64536557,235.54,235.46,2.48]
[1732136006198,2.1212,235.5,235.45,2.1215]
[1732136006399,6.64536557,235.52,235.45,4.6015]
[1732136007295,2.1211,235.5,235.45,4.6015]
[1732136007993,2.1212,235.49,235.45,4.6015]
[1732136008200,6.64536557,235.46,235.25,5.74500405]
[1732136008395,2.122,235.41,235.34,6.64536557]
[1732136008603,6.64536557,235.45,235.36,6.64536557]
[1732136008900,2.1216,235.45,235.38,8.76756557]
[1732136009194,2.48,235.52,235.4,6.64536557]
[1732136009398,6.64536557,235.48,235.4,8.76736557]
[1732136009699,2.1216,235.45,235.4,8.76736557]
[1732136009999,6.64536557,235.48,235.39,2.48]
[1732136010195,2.1218,235.43,235.39,2.48]
[1732136010608,2.1219,235.41,235.39,2.48]
[1732136010896,6.64536557,235.44,235.35,9.12536557]
[1732136011097,6.64536557,235.44,235.35,6.64536557]
[1732136011297,6.64536557,235.44,235.35,8.76776557]
[1732136011496,6.64536557,235.44,235.34,2.48]
[1732136011701,1.3147,235.53,235.33,2.48]
[1732136011702,6.64536557,235.42,235.33,2.48]
[1732136012303,2.122,235.4,235.33,2.48]
[1732136012603,6.64536557,235.42,235.33,2.48]
[1732136012800,2.1222,235.38,235.33,2.48]
[1732136013703,2.1222,235.38,235.33,4.6026]
[1732136015004,6.64536557,235.44,235.36,6.64536557]
[1732136015599,6.64536557,235.44,235.36,8.76766557]
[1732136016105,6.64536557,235.44,235.36,6.64536557]
[1732136016301,2.14456821,235.45,235.36,6.64536557]
[1732136016603,6.64536557,235.45,235.36,6.64536557]
[1732136016805,6.64536557,235.45,235.36,8.76766557]
[1732136017005,2.1218,235.42,235.36,8.76766557]
[1732136017206,2.1218,235.42,235.37,2.1222]
[1732136017998,9.12536557,235.48,235.38,6.64536557]
[1732136019097,2.1216,235.45,235.4,2.122]
[1732136019300,9.12536557,235.48,235.4,2.122]
[1732136020105,9.12536557,235.48,235.39,2.1221]
[1732136020401,9.12536557,235.48,235.38,6.64536557]
[1732136020706,6.64536557,235.48,235.4,6.64536557]
[1732136021409,2.1216,235.45,235.4,8.76726557]
[1732136022304,2.1216,235.44,235.4,8.76726557]
[1732136023802,2.1215,235.46,235.42,6.64536557]
[1732136024004,1.3147,235.53,235.42,6.64536557]
[1732136024310,6.64536557,235.53,235.44,6.64536557]
[1732136024510,6.64536557,235.51,235.42,6.64536557]
[1732136025008,19.71700762,235.54,235.42,6.64536557]
[1732136025302,6.64536557,235.5,235.42,6.64536557]
[1732136026102,2.1213,235.48,235.42,8.76716557]
[1732136026307,6.64536557,235.5,235.42,8.76716557]
[1732136026504,6.64536557,235.5,235.42,6.64536557]
[1732136027400,2.1214,235.47,235.43,2.1217]
[1732136027603,2.1214,235.47,235.41,6.64536557]
[1732136027801,6.64536557,235.5,235.41,6.64536557]
[1732136028909,6.64536557,235.5,235.42,2.1218]
[1732136029109,6.64536557,235.48,235.39,2.48]
[1732136029506,6.64536557,235.48,235.38,9.12536557]
[1732136030104,2.1218,235.43,235.39,2.122]
[1732136031012,2.1216,235.45,235.4,8.76726557]
[1732136031315,19.71700762,235.54,235.42,6.64536557]
[1732136031509,6.64536557,235.51,235.42,6.64536557]
[1732136031814,6.64536557,235.51,235.43,2.1216]
[1732136032312,6.64536557,235.51,235.42,6.64536557]
[1732136032911,6.64536557,235.51,235.42,8.76716557]
[1732136034314,2.1215,235.46,235.42,8.76716557]
[1732136034515,6.64536557,235.51,235.44,6.64536557]
[1732136035005,2.1214,235.47,235.43,2.1217]
[1732136035407,2.14401912,235.52,235.38,2.48]
[1732136035408,6.64536557,235.49,235.38,2.48]
[1732136035605,6.64536557,235.47,235.39,6.64536557]
[1732136035811,6.64536557,235.47,235.39,8.76746557]
[1732136036012,2.1217,235.44,235.39,8.76746557]
[1732136036210,2.1217,235.44,235.39,6.64536557]
[1732136036714,6.64536557,235.51,235.41,6.64536557]
[1732136036916,2.1215,235.45,235.41,6.64536557]
[1732136038319,2.1215,235.45,235.41,8.76726557]
[1732136040913,6.64536557,235.46,235.37,6.64536557]
[1732136041527,2.122,235.41,235.37,8.76756557]
[1732136041817,6.64536557,235.46,235.37,8.76756557]
[1732136042120,2.1218,235.42,235.39,6.64536557]
[1732136042723,10.37636557,235.5,235.41,8.76716557]
[1732136043322,2.1216,235.44,235.41,6.64536557]
[1732136043721,10.37636557,235.5,235.41,6.64536557]
[1732136043918,2.1216,235.44,235.41,6.64536557]
[1732136045223,6.64536557,235.49,235.41,6.64536557]
[1732136045520,6.64536557,235.47,235.39,6.64536557]
[1732136045820,2.1219,235.42,235.39,6.64536557]
[1732136046714,2.1216,235.45,235.41,8.76726557]
[1732136046913,6.64536557,235.49,235.41,6.64536557]
[1732136047322,2.1216,235.44,235.41,6.64536557]
[1732136047515,2.1216,235.44,235.4,2.1219]
[1732136047715,6.64536557,235.49,235.4,2.1219]
[1732136049131,6.64536557,235.47,235.36,2.48]
[1732136049432,6.64536557,235.47,235.39,8.76746557]
[1732136049619,2.1217,235.43,235.39,8.76746557]
[1732136049821,2.1217,235.43,235.35,2.6348]
[1732136049822,6.64536557,235.43,235.34,6.64536557]
[1732136050018,6.64536557,235.43,235.29,2.5543]
[1732136050328,2.46,235.45,235.32,6.64536557]
[1732136050329,6.64536557,235.41,235.32,6.64536557]
[1732136050719,2.1227,235.33,235.3,6.64536557]
[1732136051023,8.79587853,235.39,235.3,6.64536557]
[1732136051924,1.3326,235.43,235.32,6.64536557]
[1732136051925,6.64536557,235.41,235.32,6.64536557]
[1732136052231,7.97796557,235.43,235.36,6.64536557]
[1732136052426,1.3326,235.43,235.36,6.64536557]
[1732136052729,2.1221,235.39,235.36,6.64536557]
[1732136053519,1.3326,235.43,235.36,6.64536557]
[1732136053727,2.1222,235.38,235.34,6.64536557]
[1732136057729,2.1222,235.38,235.34,8.76776557]
[1732136058333,2.1223,235.37,235.34,6.64536557]
[1732136060043,2.1224,235.36,235.33,2.1226]
[1732136060341,2.1223,235.37,235.34,2.1225]
[1732136060939,2.1223,235.37,235.32,6.64536557]
[1732136060940,2.1223,235.36,235.33,2.1226]
[1732136062742,6.64536557,235.41,235.32,6.64536557]
[1732136062944,2.1223,235.37,235.34,2.1225]
[1732136063338,2.1223,235.37,235.32,6.64536557]
[1732136063339,6.64536557,235.41,235.32,6.64536557]
[1732136063544,2.1223,235.36,235.33,2.1226]
[1732136064147,6.64536557,235.41,235.28,2.123]
[1732136064148,2.1228,235.31,235.28,2.123]
[1732136064942,6.64536557,235.35,235.26,2.1232]
[1732136065349,2.48,235.39,235.24,2.48]
[1732136065350,2.1232,235.27,235.24,2.48]
[1732136065545,6.64536557,235.31,235.21,2.48]
[1732136065843,6.64536557,235.31,235.22,6.64536557]
[1732136066236,6.64536557,235.25,235.14,3.77]
[1732136066441,6.64536557,235.25,235.17,6.64536557]
[1732136067245,2.1236,235.22,235.17,6.64536557]
[1732136067445,2.5252,235.3,235.21,6.64536557]
[1732136067646,2.1232,235.27,235.22,2.1236]
[1732136067843,9.17056557,235.3,235.23,6.64536557]
[1732136068141,2.48,235.32,235.25,6.64536557]
[1732136068340,2.1231,235.28,235.25,6.64536557]
[1732136068546,6.64536557,235.33,235.25,6.64536557]
[1732136069750,2.123,235.29,235.25,6.64536557]
[1732136070045,6.64536557,235.33,235.25,6.64536557]
[1732136070643,6.64536557,235.33,235.25,8.76866557]
[1732136070644,2.123,235.3,235.25,8.76866557]
[1732136071244,2.1231,235.28,235.22,4.6036]
[1732136071448,2.1231,235.28,235.23,6.64536557]
[1732136071843,6.64536557,235.29,235.23,2.1235]
[1732136072051,2.1233,235.26,235.22,2.48]
[1732136072246,2.1233,235.26,235.21,6.64536557]
[1732136072446,6.64536557,235.29,235.21,6.64536557]
[1732136073149,2.1232,235.27,235.21,6.64536557]
[1732136073345,6.64536557,235.29,235.21,6.64536557]
[1732136073852,2.1234,235.25,235.21,6.64536557]
[1732136074543,2.1234,235.25,235.21,8.76906557]
[1732136076651,6.64536557,235.29,235.21,6.64536557]
[1732136076851,2.1235,235.24,235.21,6.64536557]
[1732136078555,2.123,235.29,235.26,2.1232]
[1732136078848,6.64536557,235.35,235.26,6.64536557]
[1732136079053,2.1229,235.31,235.26,8.76856557]
[1732136079252,2.1229,235.31,235.26,6.64536557]
[1732136079547,6.64536557,235.35,235.26,6.64536557]
[1732136080251,6.64536557,235.31,235.19,2.56]
[1732136080447,6.64536557,235.31,235.22,6.64536557]
[1732136080652,6.64536557,235.31,235.24,6.64536557]
[1732136081356,2.1231,235.28,235.24,8.76876557]
[1732136083250,6.64536557,235.28,235.19,2.56]
[1732136083450,6.64536557,235.28,235.19,9.20536557]
[1732136083649,2.1234,235.24,235.2,2.1238]
[1732136085056,2.1234,235.24,235.21,2.1237]
[1732136085552,6.64536557,235.26,235.17,2.124]
[1732136086158,2.1237,235.21,235.18,2.1239]
[1732136086955,2.1237,235.21,235.18,8.76926557]
[1732136088352,6.64536557,235.27,235.18,6.64536557]
[1732136088557,6.64536557,235.27,235.19,2.1238]
[1732136088758,8.72548272,235.29,235.2,6.64536557]
[1732136088952,2.1233,235.26,235.22,8.76896557]
[1732136089152,6.64536557,235.32,235.24,6.64536557]
[1732136089354,6.64536557,235.32,235.16,2.5716]
[1732136089355,9.10536557,235.34,235.26,6.64536557]
[1732136089752,6.64536557,235.34,235.26,6.64536557]
[1732136090355,4.2433,235.44,235.3,6.64536557]
[1732136090560,9.18856557,235.39,235.3,6.64536557]
[1732136091063,6.64536557,235.37,235.3,6.64536557]
[1732136091560,6.64536557,235.35,235.27,2.46]
[1732136092058,6.64536557,235.35,235.28,6.64536557]
[1732136092457,2.5432,235.39,235.32,6.64536557]
[1732136092754,2.5432,235.39,235.3,6.64536557]
[1732136093059,1.251,235.39,235.32,6.64536557]
[1732136093461,2.1224,235.35,235.32,6.64536557]
[1732136093862,2.46,235.46,235.34,6.64536557]
[1732136094155,1.2016,235.47,235.38,6.64536557]
[1732136094356,0.68619356,235.46,235.38,6.64536557]
[1732136094561,4.2407,235.59,235.4,6.64536557]
[1732136094562,2.1216,235.44,235.4,6.64536557]
[1732136094756,6.64536557,235.49,235.4,6.64536557]
[1732136094959,0.68617355,235.48,235.4,6.64536557]
[1732136095154,2.1214,235.47,235.4,6.64536557]
[1732136095365,6.64536557,235.49,235.4,6.64536557]
[1732136095661,6.64536557,235.52,235.42,6.64536557]
[1732136096164,2.1214,235.47,235.44,6.64536557]
[1732136096358,2.1214,235.47,235.42,6.64536557]
[1732136097167,2.1214,235.47,235.4,14.18732906]
[1732136098467,2.1214,235.47,235.41,2.1218]
[1732136098865,2.1214,235.47,235.42,2.1218]
[1732136100364,10.38372906,235.52,235.4,3.8036]
[1732136100669,0.68603793,235.51,235.39,2.46]
[1732136100871,2.46,235.56,235.4,10.38372906]
[1732136101064,0.68597899,235.55,235.4,10.38372906]
[1732136101263,2.1212,235.49,235.43,2.1216]
[1732136101459,10.38372906,235.55,235.4,10.38372906]
[1732136101864,10.38372906,235.55,235.41,2.1218]
[1732136101865,2.1211,235.5,235.41,2.1218]
[1732136102063,10.38372906,235.55,235.41,2.1218]
[1732136102566,0.68597509,235.54,235.38,5.9719]
[1732136102761,0.68597509,235.54,235.39,2.46]
[1732136102962,2.1213,235.48,235.39,2.46]
[1732136103163,10.38372906,235.55,235.4,2.1219]
[1732136103469,10.38372906,235.55,235.39,2.46]
[1732136103470,0.68597964,235.54,235.39,2.46]
[1732136103967,0.68597964,235.54,235.4,10.38372906]
[1732136104264,0.68597964,235.54,235.43,2.1217]
[1732136104571,2.1209,235.52,235.46,2.1214]
[1732136104863,11.68962906,235.58,235.46,2.1214]
[1732136105065,2.121,235.52,235.46,2.1214]
[1732136105262,11.68962906,235.58,235.45,2.46]
[1732136105466,0.68594146,235.57,235.48,2.1212]
[1732136105866,2.1209,235.52,235.45,2.46]
[1732136106961,124.75165447,235.6,235.48,2.1212]
[1732136106962,120.20639,235.6,235.48,2.1212]
[1732136107269,0.68586612,235.59,235.45,2.46]
[1732136107865,0.68586612,235.59,235.48,2.1212]
[1732136107866,2.1208,235.54,235.48,2.1212]
[1732136108172,2.1208,235.54,235.45,2.46]
[1732136108370,2.1208,235.54,235.49,2.1211]
[1732136108869,2.1209,235.53,235.49,2.1211]
[1732136109568,10.38372906,235.57,235.42,2.46]
[1732136109768,10.38372906,235.54,235.42,2.46]
[1732136110467,10.38372906,235.54,235.4,2.1219]
[1732136110673,2.1219,235.42,235.38,1.2617]
[1732136110869,4.59277178,235.5,235.38,1.2617]
[1732136111075,2.1214,235.47,235.38,1.2617]
[1732136111370,4.59277178,235.5,235.38,1.2617]
[1732136111570,2.1218,235.43,235.38,3.3839]
[1732136112470,1.221,235.53,235.38,1.2617]
[1732136113375,1.221,235.53,235.4,2.1219]
[1732136113875,2.1215,235.45,235.41,2.1219]
[1732136114174,2.1215,235.45,235.38,1.2617]
[1732136114669,2.1214,235.47,235.4,10.38372906]
[1732136114870,1.221,235.53,235.4,10.38372906]
[1732136115077,1.2789,235.56,235.47,2.1213]
[1732136115374,1.2789,235.56,235.41,1.3335]
[1732136115375,1.2789,235.56,235.44,2.46]
[1732136115574,2.1213,235.48,235.44,2.46]
[1732136115974,2.1213,235.48,235.44,4.5815]
[1732136116170,1.2789,235.56,235.44,2.46]
[1732136116371,120.20639,235.6,235.46,10.38372906]
[1732136116569,120.20639,235.6,235.47,2.1213]
[1732136116975,2.1207,235.55,235.47,2.1213]
[1732136117176,10.38372906,235.58,235.48,2.1212]
[1732136117878,10.38372906,235.58,235.44,2.46]
[1732136118075,2.1208,235.54,235.44,4.5815]
[1732136118380,10.38372906,235.58,235.44,2.46]
[1732136118680,6.64441176,235.54,235.46,2.1214]
[1732136119279,2.1211,235.5,235.45,8.76591176]
[1732136119482,6.64441176,235.52,235.45,2.1215]
[1732136120879,120.20639,235.6,235.45,2.1215]
[1732136121074,6.64441176,235.51,235.44,2.46]
[1732136121575,2.1213,235.49,235.44,2.46]
[1732136121775,2.1213,235.49,235.43,2.1216]
[1732136121972,2.1213,235.49,235.44,8.76601176]
[1732136122371,2.1213,235.48,235.44,8.76601176]
[1732136122979,2.1213,235.48,235.44,6.64441176]
[1732136125579,2.1213,235.48,235.43,2.1217]
[1732136125878,2.46,235.56,235.46,6.64441176]
[1732136126081,2.1212,235.49,235.46,6.64441176]
[1732136126377,2.1212,235.49,235.45,2.1215]
[1732136126582,2.1212,235.49,235.44,6.64441176]
[1732136126781,6.64441176,235.52,235.44,6.64441176]
[1732136127080,6.64441176,235.52,235.44,2.1216]
[1732136127280,2.1211,235.5,235.43,6.64441176]
[1732136127484,6.64441176,235.52,235.44,2.1216]
[1732136128082,2.1213,235.49,235.44,2.1216]
[1732136129385,6.64441176,235.52,235.43,6.64441176]
[1732136129577,2.1214,235.47,235.43,6.64441176]
[1732136129976,2.46,235.56,235.41,2.46]
[1732136129977,6.64441176,235.5,235.41,2.46]
[1732136130382,6.64441176,235.5,235.39,6.64441176]
[1732136130585,6.64441176,235.5,235.4,2.122]
[1732136131180,6.64441176,235.48,235.38,12.48821176]
[1732136131383,2.5589,235.59,235.32,1.2142]
[1732136131384,6.64441176,235.44,235.32,1.2142]
[1732136131584,6.64441176,235.44,235.35,6.64441176]
[1732136132187,2.1223,235.37,235.33,2.1225]
[1732136132384,6.64441176,235.42,235.33,6.64441176]
[1732136133090,2.1223,235.37,235.33,8.76701176]
[1732136133686,2.1223,235.37,235.33,6.64441176]
[1732136134184,2.1223,235.37,235.32,3.3369]
[1732136134185,6.64441176,235.44,235.35,6.64441176]
[1732136134381,1.3146,235.47,235.37,6.64441176]
[1732136134382,7.95901176,235.47,235.37,6.64441176]
[1732136135382,2.122,235.4,235.37,6.64441176]
[1732136135991,2.1218,235.43,235.39,6.64441176]
[1732136136991,5.0002,235.48,235.39,6.64441176]
[1732136136992,2.1218,235.42,235.39,6.64441176]
[1732136137186,1.2514,235.54,235.39,6.64441176]
[1732136137187,2.46,235.53,235.39,6.64441176]
[1732136137390,6.64441176,235.49,235.41,6.64441176]
[1732136138387,2.1217,235.44,235.41,6.64441176]
[1732136139293,2.1217,235.43,235.41,6.64441176]
[1732136139787,6.64441176,235.49,235.41,6.64441176]
[1732136140289,2.1217,235.44,235.41,6.64441176]
[1732136140793,2.46,235.53,235.39,9.10441176]
[1732136140794,6.64441176,235.47,235.39,9.10441176]
[1732136140989,2.46,235.53,235.39,9.10441176]
[1732136141192,2.46,235.53,235.45,6.64441176]
[1732136141193,0.68602194,235.52,235.45,6.64441176]
[1732136141386,8.76561176,235.49,235.41,6.64441176]
[1732136141686,6.64441176,235.49,235.4,1.2864]
[1732136142189,6.64441176,235.45,235.32,1.2142]
[1732136142393,6.64441176,235.43,235.34,6.64441176]
[1732136142584,2.1221,235.39,235.34,6.64441176]
[1732136142785,6.64441176,235.43,235.34,6.64441176]
[1732136143299,2.1219,235.41,235.34,6.64441176]
[1732136143498,6.64441176,235.43,235.34,6.64441176]
[1732136144597,6.64441176,235.43,235.36,6.64441176]
[1732136144801,9.10441176,235.47,235.38,6.64441176]
[1732136145311,2.1219,235.41,235.38,6.64441176]
[1732136145506,9.10441176,235.47,235.38,6.64441176]
[1732136145802,2.1216,235.45,235.38,6.64441176]
[1732136146002,2.46,235.51,235.4,6.64441176]
[1732136146201,6.64441176,235.51,235.42,6.64441176]
[1732136146504,11.02362292,235.55,235.44,6.64441176]
[1732136146505,2.1211,235.5,235.44,6.64441176]
[1732136146704,6.64441176,235.52,235.44,6.64441176]
[1732136147306,8.75437304,235.54,235.44,6.64441176]
[1732136147505,0.68596773,235.53,235.44,6.64441176]
[1732136147800,6.64441176,235.52,235.44,6.64441176]
[1732136148203,2.1213,235.48,235.44,8.76601176]
[1732136148702,2.1213,235.48,235.44,6.64441176]
[1732136148906,2.1212,235.49,235.44,6.64441176]
[1732136149503,2.1212,235.49,235.44,8.76601176]
[1732136149701,2.1213,235.48,235.44,8.76601176]
[1732136149901,6.64441176,235.52,235.44,8.76601176]
[1732136150311,2.1213,235.48,235.44,8.76601176]
[1732136150609,2.1213,235.48,235.44,6.64441176]
[1732136152008,2.1214,235.47,235.42,6.64441176]
[1732136152204,6.64441176,235.48,235.4,7.88651176]
[1732136152604,2.1215,235.46,235.41,2.1219]
[1732136152801,6.64441176,235.5,235.42,6.64441176]
[1732136153209,4.9025,235.55,235.4,6.64441176]
[1732136153210,6.64441176,235.48,235.4,6.64441176]
[1732136153407,6.64441176,235.48,235.37,2.46]
[1732136153608,6.64441176,235.48,235.39,6.64441176]
[1732136153809,6.64441176,235.48,235.41,2.1219]
[1732136154010,6.64441176,235.5,235.41,8.76631176]
[1732136154311,2.1215,235.45,235.41,8.76631176]
[1732136155108,2.1215,235.46,235.41,8.76631176]
[1732136155506,2.1215,235.45,235.41,8.76631176]
[1732136156207,2.1214,235.46,235.41,8.76631176]
[1732136157610,2.1215,235.45,235.43,6.64441176]
[1732136157911,6.64441176,235.54,235.44,2.1216]
[1732136158103,0.685949,235.53,235.46,6.64441176]
[1732136158308,4.9025,235.55,235.46,6.64441176]
[1732136158507,4.9025,235.55,235.46,8.76581176]
[1732136159110,2.1211,235.51,235.46,8.76581176]
[1732136159713,2.1211,235.5,235.46,8.76581176]
[1732136160308,4.9025,235.55,235.46,8.76581176]
[1732136161313,2.121,235.51,235.46,8.76581176]
[1732136161915,2.4425,235.55,235.46,6.64441176]
[1732136162107,2.4425,235.55,235.43,2.46]
[1732136162108,2.1207,235.54,235.5,6.64441176]
[1732136162312,6.64441176,235.59,235.5,6.64441176]
[1732136162512,120.20639,235.6,235.52,6.64441176]
[1732136162723,7.33016862,235.59,235.5,6.64441176]
[1732136163015,6.64441176,235.57,235.5,6.64441176]
[1732136163413,120.20639,235.6,235.5,6.64441176]
[1732136163611,6.64441176,235.58,235.5,6.64441176]
[1732136163810,2.1208,235.54,235.5,6.64441176]
[1732136166115,6.64441176,235.54,235.47,2.46]
[1732136166313,6.64441176,235.54,235.31,5.70500611]
[1732136166314,6.64441176,235.49,235.27,24.98256937]
[1732136166519,2.1221,235.39,235.34,6.64441176]
[1732136167122,2.1221,235.39,235.34,8.76691176]
[1732136167518,2.1219,235.41,235.36,6.64441176]
[1732136167722,2.46,235.48,235.36,8.76661176]
[1732136167723,6.64441176,235.44,235.36,8.76661176]
[1732136168217,6.64441176,235.45,235.37,2.1222]
[1732136168414,6.64441176,235.45,235.36,6.64441176]
[1732136168618,6.64441176,235.45,235.32,2.4127]
[1732136168619,2.1218,235.43,235.32,12.80337799]
[1732136168824,12.85067799,235.48,235.37,2.1222]
[1732136169420,2.1218,235.42,235.37,2.1222]
[1732136169619,12.85067799,235.48,235.37,2.1222]
[1732136169816,2.1218,235.43,235.37,2.1222]
[1732136170024,12.85067799,235.48,235.37,2.1222]
[1732136170224,12.85067799,235.48,235.35,2.1224]
[1732136170529,2.122,235.4,235.35,2.1224]
[1732136170823,12.85067799,235.48,235.36,2.1223]
[1732136171225,2.1219,235.41,235.36,2.1223]
[1732136171424,2.1219,235.41,235.37,2.1222]
[1732136173025,2.1219,235.41,235.38,2.1222]
[1732136174425,2.1219,235.41,235.36,2.1222]
[1732136174625,2.1219,235.41,235.35,10.39067799]
[1732136174827,12.85067799,235.48,235.35,10.39067799]
[1732136175023,12.85067799,235.48,235.32,12.80337799]
[1732136175522,2.1222,235.38,235.34,2.1225]
[1732136176632,2.1223,235.37,235.33,2.1226]
[1732136176826,2.46,235.42,235.33,2.1226]
[1732136177222,2.122,235.4,235.33,2.1226]
[1732136177528,2.46,235.42,235.32,10.39067799]
[1732136178321,2.1222,235.39,235.34,2.1224]
[1732136178932,2.1222,235.38,235.34,2.1224]
[1732136181331,2.46,235.42,235.32,2.1227]
[1732136184230,2.1224,235.36,235.32,2.1227]
[1732136186236,2.46,235.42,235.3,10.39067799]
[1732136186430,2.1222,235.38,235.34,2.1224]
[1732136186832,2.5537,235.44,235.34,2.1224]
[1732136187137,2.5537,235.44,235.33,10.39067799]
[1732136187340,2.5537,235.44,235.37,2.1222]
[1732136188038,2.1216,235.45,235.37,2.1222]
[1732136188332,2.46,235.47,235.37,2.1222]
[1732136189135,2.122,235.4,235.35,2.1223]
[1732136189336,2.46,235.47,235.35,2.1223]
[1732136189541,2.1221,235.4,235.35,2.1223]
[1732136189839,2.46,235.47,235.35,2.1223]
[1732136190337,2.122,235.4,235.35,2.1223]
[1732136190934,2.46,235.47,235.33,2.1225]
[1732136191134,6.6515809,235.42,235.33,8.7740809]
[1732136192136,2.1222,235.38,235.33,8.7740809]
[1732136192440,2.1222,235.38,235.34,2.1225]
[1732136193039,6.6515809,235.42,235.28,3.743]
[1732136193432,6.6515809,235.42,235.33,6.6515809]
[1732136193739,2.1223,235.37,235.33,8.7741809]
[1732136193940,6.6515809,235.42,235.33,8.7741809]
[1732136194240,2.1223,235.37,235.33,8.7741809]
[1732136194740,6.6515809,235.42,235.33,8.7741809]
[1732136195040,2.1224,235.36,235.33,8.7741809]
[1732136195241,2.1224,235.36,235.33,6.6515809]
[1732136195538,6.6515809,235.36,235.28,6.6515809]
[1732136196444,2.1450816,235.37,235.28,6.6515809]
[1732136196741,3.7474,235.41,235.28,6.6515809]
[1732136196742,2.123,235.29,235.28,6.6515809]
[1732136197141,11.2587855,235.35,235.24,2.421]
[1732136197340,2.1231,235.28,235.26,6.6515809]
[1732136197637,2.46,235.38,235.26,6.6515809]
[1732136197942,2.1226,235.34,235.31,6.6515809]
[1732136198235,2.1223,235.36,235.31,6.6515809]
[1732136198435,2.46,235.38,235.31,6.6515809]
[1732136199041,2.46,235.38,235.31,8.7742809]
[1732136199042,2.1222,235.38,235.31,8.7742809]
[1732136199233,2.15752061,235.4,235.31,8.7742809]
[1732136200741,2.15752061,235.4,235.31,6.6515809]
[1732136201040,6.6515809,235.39,235.31,6.6515809]
[1732136201440,2.1223,235.37,235.31,6.6515809]
[1732136201737,6.6515809,235.39,235.31,6.6515809]
[1732136203441,6.6515809,235.39,235.27,2.1231]
[1732136203643,7.8630809,235.39,235.29,6.6515809]
[1732136203943,2.1228,235.31,235.29,6.6515809]
[1732136204738,2.1227,235.32,235.29,6.6515809]
[1732136205437,1.2115,235.39,235.24,4.881]
[1732136205738,6.6515809,235.35,235.26,6.6515809]
[1732136205940,2.123,235.29,235.26,6.6515809]
[1732136206139,9.1115809,235.35,235.26,6.6515809]
[1732136206948,2.1227,235.33,235.26,6.6515809]
[1732136207143,9.1115809,235.35,235.26,6.6515809]
[1732136207852,2.123,235.29,235.26,6.6515809]
[1732136208149,2.123,235.29,235.27,6.6515809]
[1732136208649,2.1231,235.28,235.27,6.6515809]
[1732136211043,6.6515809,235.33,235.21,3.4166]
[1732136211247,6.6515809,235.31,235.23,6.6515809]
[1732136211643,6.6515809,235.31,235.21,6.6515809]
[1732136212144,2.1235,235.24,235.21,6.6515809]
[1732136212548,2.13012375,235.28,235.21,6.6515809]
[1732136212747,2.1236,235.22,235.17,2.5459]
[1732136212953,2.1236,235.22,235.2,6.6515809]
[1732136213155,2.13904529,235.27,235.2,6.6515809]
[1732136213353,2.1753687,235.27,235.2,6.6515809]
[1732136213548,9.1115809,235.29,235.2,6.6515809]
[1732136213948,2.1236,235.22,235.2,6.6515809]
[1732136214556,2.15030342,235.27,235.2,6.6515809]
[1732136214756,9.1115809,235.29,235.2,6.6515809]
[1732136215248,2.1232,235.27,235.2,6.6515809]
[1732136215448,2.08220591,235.28,235.22,6.6515809]
[1732136216060,2.1235,235.24,235.22,6.6515809]
[1732136216459,2.08220591,235.28,235.22,6.6515809]
[1732136216661,2.1235,235.23,235.22,6.6515809]
[1732136217359,2.08220591,235.28,235.22,6.6515809]
[1732136217562,2.1234,235.24,235.22,6.6515809]
[1732136217856,2.1234,235.24,235.19,2.1239]
[1732136217857,2.1234,235.24,235.2,6.6515809]
[1732136218160,6.6515809,235.22,235.06,5.70500611]